bitfinex/quotes_SOLUSD_20250531
["timestamp","ask_amount","ask_price","bid_price","bid_amount"]
[1748655516888,6.45786244,154.85,154.77,42.62304463]
[1748655517194,42.62304463,154.81,154.77,18.933972]
[1748655517363,42.62304463,154.8,154.77,0.28432314]
[1748655517559,75.08257272,154.82,154.77,0.28432314]
[1748655517972,42.62304463,154.81,154.77,0.28432314]
[1748655518272,42.62304463,154.78,154.7,18.79181043]
[1748655518475,42.62304463,154.76,154.71,18.64964886]
[1748655518802,26.0,154.76,154.7,18.64964886]
[1748655518983,26.0,154.76,154.73,0.28432314]
[1748655519297,26.0,154.76,154.72,18.64964886]
[1748655519461,26.0,154.76,154.65,18.64964886]
[1748655519462,6.4628708,154.73,154.65,18.64964886]
[1748655519662,42.62304463,154.72,154.62,21.56327547]
[1748655519896,42.62304463,154.7,154.62,21.56327547]
[1748655520080,26.0,154.7,154.64,48.81504463]
[1748655520269,42.62304463,154.69,154.65,18.933972]
[1748655520473,42.62304463,154.69,154.65,18.64964886]
[1748655520678,42.62304463,154.69,154.66,0.28432314]
[1748655520991,42.62304463,154.67,154.62,2.90779859]
[1748655521289,42.62304463,154.66,154.62,2.90779859]
[1748655521470,54.93440184,154.73,154.62,45.53084322]
[1748655521471,32.46539644,154.67,154.62,45.53084322]
[1748655521664,32.46539644,154.67,154.63,18.64964886]
[1748655521978,42.62304463,154.66,154.63,18.64964886]
[1748655522479,42.62304463,154.66,154.59,1.5221]
[1748655522480,26.0,154.63,154.56,42.62304463]
[1748655522672,26.0,154.63,154.53,6.47119071]
[1748655522871,68.62304463,154.63,154.58,18.64964886]
[1748655523067,4.5,154.62,154.61,18.64964886]
[1748655523470,4.5,154.62,154.61,61.55701663]
[1748655523696,4.5,154.62,154.61,68.02490357]
[1748655523891,93.04,154.72,154.62,18.933972]
[1748655524100,93.04,154.72,154.68,18.64964886]
[1748655524393,93.04,154.72,154.69,0.28432314]
[1748655524989,93.04,154.72,154.61,48.63760429]
[1748655524990,135.66304463,154.72,154.61,32.46788694]
[1748655525172,42.62304463,154.7,154.66,18.933972]
[1748655525508,135.66304463,154.72,154.68,0.14216157]
[1748655525705,93.04,154.72,154.68,0.28432314]
[1748655526006,119.04,154.72,154.7,0.28432314]
[1748655526190,26.0,154.72,154.7,0.28432314]
[1748655526390,6.4635569,154.72,154.7,0.28432314]
[1748655527090,49.08545982,154.75,154.7,18.933972]
[1748655527282,42.62304463,154.74,154.7,0.28432314]
[1748655527483,6.46167883,154.76,154.71,18.64964886]
[1748655527693,146.9,154.8,154.72,0.28432314]
[1748655527914,42.62304463,154.77,154.72,0.28432314]
[1748655528285,26.0,154.76,154.72,0.28432314]
[1748655528615,26.0,154.76,154.71,18.64964886]
[1748655528818,26.0,154.76,154.65,8.0338]
[1748655528819,42.62304463,154.74,154.69,18.64964886]
[1748655528980,42.62304463,154.74,154.66,18.64964886]
[1748655528981,42.62304463,154.78,154.73,18.64964886]
[1748655529179,49.08341028,154.79,154.74,0.28432314]
[1748655529486,146.9,154.8,154.77,18.64964886]
[1748655529487,6.46003582,154.8,154.77,18.64964886]
[1748655529811,16.14512978,154.85,154.78,0.28432314]
[1748655529812,6.45946089,154.82,154.78,0.28432314]
[1748655529984,6.45946089,154.82,154.79,61.27269349]
[1748655530180,32.45946089,154.82,154.79,18.64964886]
[1748655530410,32.45946089,154.82,154.7,42.15973099]
[1748655530411,26.0,154.79,154.76,0.28432314]
[1748655530587,26.0,154.79,154.75,18.933972]
[1748655530780,26.0,154.79,154.75,61.55701663]
[1748655530976,26.0,154.79,154.75,0.28432314]
[1748655531181,68.62304463,154.79,154.75,0.28432314]
[1748655531415,22.60724541,154.82,154.73,0.28432314]
[1748655531416,42.62304463,154.77,154.73,0.28432314]
[1748655531583,26.0,154.78,154.63,18.65547688]
[1748655531584,42.62304463,154.74,154.63,18.65547688]
[1748655531785,26.0,154.75,154.63,18.65547688]
[1748655531786,42.62304463,154.72,154.63,18.65547688]
[1748655531990,42.62304463,154.72,154.66,42.62304463]
[1748655532189,42.62304463,154.73,154.67,42.62304463]
[1748655532511,146.9,154.91,154.72,42.62304463]
[1748655532692,6.45411126,154.94,154.77,44.64964886]
[1748655533003,6.45411126,154.94,154.78,0.28432314]
[1748655533194,42.62304463,154.87,154.82,18.933972]
[1748655533403,16.45411126,154.94,154.82,0.28432314]
[1748655533404,42.62304463,154.86,154.82,0.28432314]
[1748655533604,42.62304463,154.85,154.82,0.28432314]
[1748655533784,6.45749978,154.86,154.82,0.28432314]
[1748655533991,26.0,154.83,154.74,18.64964886]
[1748655534391,42.62304463,154.79,154.74,18.64964886]
[1748655534591,42.62304463,154.79,154.75,0.14216157]
[1748655534788,26.0,154.83,154.74,18.64964886]
[1748655535289,26.0,154.83,154.74,61.27269349]
[1748655535492,22.60111336,154.86,154.74,61.27269349]
[1748655535493,68.62304463,154.79,154.75,0.14216157]
[1748655535796,32.46043294,154.79,154.75,0.28432314]
[1748655535988,42.62304463,154.78,154.75,0.28432314]
[1748655536195,42.62304463,154.78,154.74,18.64964886]
[1748655536593,42.62304463,154.75,154.71,18.64964886]
[1748655536837,26.0,154.76,154.71,18.64964886]
[1748655536838,42.62304463,154.76,154.71,18.64964886]
[1748655537006,42.62304463,154.75,154.71,18.64964886]
[1748655537208,26.0,154.76,154.71,18.64964886]
[1748655537407,68.62304463,154.76,154.72,0.14216157]
[1748655537715,68.62304463,154.76,154.71,18.64964886]
[1748655537716,26.0,154.76,154.71,18.64964886]
[1748655537922,68.62304463,154.76,154.72,0.28432314]
[1748655538235,68.62304463,154.76,154.71,18.64964886]
[1748655538236,42.62304463,154.74,154.71,18.64964886]
[1748655538590,64.89990108,154.83,154.7,2.66409502]
[1748655538591,42.62304463,154.72,154.7,2.66409502]
[1748655538791,26.0,154.73,154.71,18.64964886]
[1748655539113,68.62304463,154.75,154.71,18.64964886]
[1748655539430,146.9,154.82,154.75,0.28432314]
[1748655539719,75.08341028,154.79,154.75,0.28432314]
[1748655539911,42.62304463,154.77,154.75,0.28432314]
[1748655540085,42.62304463,154.77,154.72,18.64964886]
[1748655540288,42.62304463,154.77,154.7,2.66409502]
[1748655540289,42.62304463,154.73,154.7,2.66409502]
[1748655540496,26.0,154.68,154.62,42.62304463]
[1748655540697,42.62304463,154.66,154.6,6.4701]
[1748655540896,26.0,154.68,154.6,6.4701]
[1748655541109,68.62304463,154.67,154.62,18.933972]
[1748655541292,26.0,154.73,154.6,6.4701]
[1748655541293,26.0,154.62,154.6,6.4701]
[1748655541497,26.0,154.58,154.52,3.36270898]
[1748655541694,32.46933225,154.58,154.52,3.36270898]
[1748655541919,42.62304463,154.57,154.52,3.36270898]
[1748655542096,32.46920596,154.58,154.53,18.933972]
[1748655542293,32.46920596,154.58,154.52,3.36270898]
[1748655542294,42.62304463,154.56,154.52,3.36270898]
[1748655542692,42.62304463,154.56,154.53,18.933972]
[1748655543000,32.46920596,154.58,154.52,3.36270898]
[1748655543001,42.62304463,154.55,154.52,3.36270898]
[1748655543310,42.62304463,154.55,154.49,42.62304463]
[1748655543311,42.62304463,154.53,154.47,49.09314463]
[1748655543618,42.62304463,154.54,154.49,42.62304463]
[1748655543812,26.0,154.55,154.47,12.94364873]
[1748655543813,42.62304463,154.53,154.5,18.64964886]
[1748655544021,32.47041185,154.55,154.47,6.4701]
[1748655544190,42.62304463,154.5,154.41,6.4701]
[1748655544393,42.62304463,154.48,154.42,42.62304463]
[1748655544627,42.62304463,154.48,154.44,18.64964886]
[1748655544802,42.62304463,154.48,154.43,42.62304463]
[1748655545000,42.62304463,154.47,154.42,42.62304463]
[1748655545303,42.62304463,154.45,154.39,44.24204463]
[1748655545626,75.2694513,154.55,154.35,49.10182661]
[1748655545627,42.62304463,154.41,154.35,49.10182661]
[1748655546127,42.62304463,154.47,154.4,42.62304463]
[1748655546334,42.62304463,154.49,154.43,61.41485506]
[1748655546617,42.62304463,154.49,154.44,0.14216157]
[1748655546787,42.62304463,154.48,154.44,0.14216157]
[1748655547728,42.62304463,154.46,154.43,0.14216157]
[1748655547939,42.62304463,154.44,154.37,42.62304463]
[1748655548148,42.62304463,154.43,154.37,42.62304463]
[1748655548358,26.0,154.47,154.41,42.62304463]
[1748655548563,42.62304463,154.49,154.44,18.933972]
[1748655548755,32.35092366,154.56,154.45,42.62304463]
[1748655548756,6.46997929,154.56,154.45,42.62304463]
[1748655548935,6.46997929,154.56,154.47,18.933972]
[1748655548936,42.62304463,154.52,154.47,18.933972]
[1748655549135,6.46997929,154.56,154.47,0.28432314]
[1748655549380,42.62304463,154.53,154.47,42.90736777]
[1748655549658,26.0,154.53,154.47,0.28432314]
[1748655549855,26.0,154.54,154.47,42.90736777]
[1748655550161,42.62304463,154.55,154.5,18.64964886]
[1748655550538,42.62304463,154.54,154.49,0.28432314]
[1748655550843,42.62304463,154.51,154.44,25.12451363]
[1748655551148,26.0,154.55,154.44,25.12451363]
[1748655551149,26.0,154.55,154.49,18.933972]
[1748655551475,32.47043528,154.55,154.49,61.55701663]
[1748655551642,42.62304463,154.54,154.49,61.55701663]
[1748655551957,68.62304463,154.57,154.51,61.55701663]
[1748655552147,42.62304463,154.56,154.51,18.933972]
[1748655552455,42.62304463,154.52,154.47,6.5487]
[1748655552668,42.62304463,154.48,154.42,18.64964886]
[1748655552845,42.62304463,154.45,154.41,6.5487]
[1748655553036,42.62304463,154.44,154.37,1.6088]
[1748655553236,42.62304463,154.44,154.38,42.62304463]
[1748655553442,42.62304463,154.44,154.35,6.5487]
[1748655553443,42.62304463,154.45,154.39,42.62304463]
[1748655553663,146.9,154.53,154.43,61.27269349]
[1748655553872,26.0,154.5,154.44,0.28432314]
[1748655554170,42.62304463,154.5,154.45,18.933972]
[1748655554370,42.62304463,154.47,154.45,0.28432314]
[1748655555056,42.62304463,154.5,154.45,0.28432314]
[1748655555233,42.62304463,154.48,154.45,0.28432314]
[1748655555443,42.62304463,154.47,154.45,0.28432314]
[1748655555645,42.62304463,154.47,154.41,42.62304463]
[1748655555646,42.62304463,154.46,154.41,18.64964886]
[1748655555836,42.62304463,154.44,154.41,18.64964886]
[1748655556035,42.62304463,154.44,154.39,18.64964886]
[1748655556236,42.62304463,154.43,154.4,0.28432314]
[1748655556452,42.62304463,154.43,154.37,42.62304463]
[1748655556662,42.62304463,154.43,154.38,18.64964886]
[1748655556875,26.0,154.46,154.4,61.55701663]
[1748655557159,68.62304463,154.46,154.4,61.55701663]
[1748655557473,68.62304463,154.46,154.36,6.47817223]
[1748655557474,26.0,154.46,154.38,42.62304463]
[1748655557767,42.62304463,154.45,154.4,0.28432314]
[1748655558269,42.62304463,154.41,154.38,18.64964886]
[1748655558442,42.62304463,154.4,154.35,6.5487]
[1748655558638,48.65965019,154.46,154.36,18.64964886]
[1748655558840,42.62304463,154.41,154.37,0.28432314]
[1748655559141,42.62304463,154.39,154.36,18.64964886]
[1748655559358,146.9,154.45,154.36,61.27269349]
[1748655559567,42.62304463,154.44,154.38,61.55701663]
[1748655559869,195.99789932,154.45,154.4,18.933972]
[1748655560058,195.99789932,154.45,154.42,0.28432314]
[1748655560367,189.52304463,154.45,154.42,0.28432314]
[1748655560537,42.62304463,154.44,154.42,0.28432314]
[1748655560741,49.09776263,154.45,154.42,0.28432314]
[1748655560960,42.62304463,154.43,154.38,18.933972]
[1748655561156,42.62304463,154.39,154.35,6.5487]
[1748655561357,42.62304463,154.39,154.36,18.64964886]
[1748655561554,32.47606503,154.42,154.37,42.7652062]
[1748655561744,32.47606503,154.42,154.37,0.14216157]
[1748655561949,42.62304463,154.41,154.36,18.64964886]
[1748655562162,32.47606503,154.42,154.36,18.64964886]
[1748655562163,32.47606503,154.42,154.37,0.28432314]
[1748655562370,42.62304463,154.41,154.36,18.64964886]
[1748655562574,42.62304463,154.38,154.32,44.23184463]
[1748655562869,42.62304463,154.38,154.33,18.64964886]
[1748655563073,42.62304463,154.38,154.33,18.933972]
[1748655563278,42.62304463,154.37,154.32,18.64964886]
[1748655563451,42.62304463,154.37,154.29,6.0527]
[1748655563452,42.62304463,154.33,154.29,6.0527]
[1748655564068,42.62304463,154.32,154.26,44.13734463]
[1748655564463,42.62304463,154.32,154.27,18.64964886]
[1748655565248,42.62304463,154.36,154.3,42.62304463]
[1748655565443,146.9,154.41,154.33,18.64964886]
[1748655565649,146.9,154.41,154.35,18.64964886]
[1748655565873,6.47542575,154.43,154.36,0.28432314]
[1748655566081,42.62304463,154.4,154.36,0.28432314]
[1748655566247,6.47542575,154.43,154.34,18.933972]
[1748655566248,42.62304463,154.39,154.34,18.933972]
[1748655566448,42.62304463,154.37,154.34,0.28432314]
[1748655566752,42.62304463,154.37,154.29,6.48130144]
[1748655566753,42.62304463,154.36,154.29,18.79181043]
[1748655566971,42.62304463,154.35,154.29,61.27269349]
[1748655567174,42.62304463,154.33,154.29,18.64964886]
[1748655567378,26.0,154.38,154.3,18.64964886]
[1748655567379,42.62304463,154.35,154.3,18.64964886]
[1748655567696,6.47710343,154.39,154.31,61.55701663]
[1748655568192,42.62304463,154.36,154.31,61.55701663]
[1748655568597,26.0,154.36,154.31,0.14216157]
[1748655568801,26.0,154.36,154.27,18.64964886]
[1748655568802,42.62304463,154.32,154.27,18.64964886]
[1748655568972,42.62304463,154.31,154.27,18.64964886]
[1748655569486,26.0,154.36,154.26,18.64964886]
[1748655569791,49.10355843,154.31,154.27,0.28432314]
[1748655570097,49.10355843,154.31,154.27,0.14216157]
[1748655570269,16.19260166,154.4,154.3,18.79181043]
[1748655570474,26.0,154.36,154.32,0.14216157]
[1748655570681,42.62304463,154.33,154.25,6.48291086]
[1748655570878,42.62304463,154.32,154.26,61.41485506]
[1748655571078,42.62304463,154.31,154.26,61.41485506]
[1748655571284,26.0,154.35,154.24,9.85220161]
[1748655571285,26.0,154.35,154.24,3.36881348]
[1748655571483,26.0,154.35,154.13,10.9139208]
[1748655571484,26.0,154.35,154.23,42.62304463]
[1748655571676,26.0,154.35,154.2,6.48474466]
[1748655571677,49.10476617,154.28,154.24,18.64964886]
[1748655571877,42.62304463,154.27,154.24,18.64964886]
[1748655572275,26.0,154.31,154.24,42.62304463]
[1748655572477,49.10392602,154.3,154.24,42.62304463]
[1748655572794,42.62304463,154.3,154.25,18.64964886]
[1748655572998,42.62304463,154.29,154.26,0.28432314]
[1748655573173,16.1941865,154.38,154.24,0.28432314]
[1748655573373,16.1941865,154.38,154.29,61.27269349]
[1748655573374,68.62304463,154.34,154.29,61.27269349]
[1748655573571,42.62304463,154.32,154.3,0.28432314]
[1748655573776,42.62304463,154.31,154.27,18.64964886]
[1748655573994,42.62304463,154.28,154.26,0.14216157]
[1748655574197,42.62304463,154.28,154.25,0.14216157]
[1748655574413,6.48038319,154.32,154.25,0.14216157]
[1748655574590,49.10276439,154.33,154.27,61.41485506]
[1748655574787,42.62304463,154.32,154.27,18.79181043]
[1748655575205,26.0,154.34,154.28,61.41485506]
[1748655575206,75.10234022,154.34,154.28,61.41485506]
[1748655575395,42.62304463,154.35,154.29,42.7652062]
[1748655575593,42.62304463,154.33,154.29,0.14216157]
[1748655575797,49.1030861,154.32,154.29,0.14216157]
[1748655576604,42.62304463,154.32,154.29,0.14216157]
[1748655577122,6.47970679,154.33,154.27,18.64964886]
[1748655577123,42.62304463,154.3,154.27,18.64964886]
[1748655577292,62.3,154.31,154.28,0.28432314]
[1748655577489,104.92304463,154.31,154.28,0.28432314]
[1748655577696,111.40375987,154.31,154.28,0.28432314]
[1748655577907,111.40375987,154.31,154.28,18.933972]
[1748655577908,62.3,154.31,154.28,18.933972]
[1748655578114,26.0,154.36,154.28,61.55701663]
[1748655578321,42.62304463,154.36,154.3,61.55701663]
[1748655578498,61.98,154.39,154.36,0.28432314]
[1748655579210,42.62304463,154.38,154.34,0.28432314]
[1748655579399,22.66692571,154.41,154.34,0.28432314]
[1748655579400,6.47626449,154.41,154.34,0.28432314]
[1748655579593,42.62304463,154.38,154.34,0.28432314]
[1748655579789,61.86,154.4,154.34,0.28432314]
[1748655579790,42.62304463,154.36,154.34,0.28432314]
[1748655579997,49.10098723,154.37,154.34,0.28432314]
[1748655580198,49.10098723,154.37,154.21,16.21062122]
[1748655580199,68.62304463,154.35,154.21,16.21062122]
[1748655580384,42.62304463,154.28,154.21,6.48466377]
[1748655580589,104.36304463,154.28,154.22,42.62304463]
[1748655580784,61.74,154.28,154.26,42.62304463]
[1748655581005,61.74,154.28,154.21,6.48466377]
[1748655581006,146.9,154.35,154.28,0.28432314]
[1748655581322,61.68,154.34,154.3,18.933972]
[1748655581689,49.10266622,154.33,154.3,0.28432314]
[1748655581890,42.62304463,154.33,154.3,0.28432314]
[1748655582838,61.68,154.34,154.3,0.28432314]
[1748655583018,42.62304463,154.32,154.3,0.28432314]
[1748655583418,42.62304463,154.31,154.27,18.933972]
[1748655583620,61.42,154.3,154.27,0.14216157]
[1748655583807,61.42,154.3,154.27,0.28432314]
[1748655584012,42.62304463,154.32,154.26,67.75508493]
[1748655584013,61.38,154.32,154.29,0.28432314]
[1748655584424,104.00304463,154.32,154.29,0.28432314]
[1748655584734,61.38,154.32,154.29,0.28432314]
[1748655585113,49.10259812,154.34,154.22,84.83310397]
[1748655585114,61.2,154.34,154.31,18.933972]
[1748655585759,61.2,154.34,154.31,0.28432314]
[1748655585925,41.69025479,154.42,154.33,42.7652062]
[1748655586121,41.69025479,154.42,154.31,0.28432314]
[1748655586122,6.47626449,154.41,154.35,61.55701663]
[1748655586326,6.47500647,154.44,154.4,0.28432314]
[1748655586507,57.2236046,154.5,154.42,0.28432314]
[1748655586508,6.47291086,154.49,154.42,0.28432314]
[1748655586712,42.62304463,154.48,154.45,0.28432314]
[1748655587042,61.0,154.47,154.41,18.933972]
[1748655587216,49.09595549,154.49,154.43,61.55701663]
[1748655587528,42.62304463,154.46,154.43,0.14216157]
[1748655587746,67.4334442,154.48,154.43,0.14216157]
[1748655587907,42.62304463,154.45,154.43,0.14216157]
[1748655588105,103.46304463,154.44,154.4,0.28432314]
[1748655588308,42.62304463,154.42,154.4,0.14216157]
[1748655588832,60.84,154.44,154.4,0.14216157]
[1748655589008,103.46304463,154.44,154.4,0.14216157]
[1748655589512,103.46304463,154.44,154.39,0.28432314]
[1748655590619,60.84,154.44,154.41,0.28432314]
[1748655591125,42.62304463,154.46,154.42,18.64964886]
[1748655591324,4.5,154.43,154.42,18.933972]
[1748655591525,4.5,154.43,154.42,0.28432314]
[1748655591844,60.34,154.49,154.43,18.933972]
[1748655592008,49.09564938,154.5,154.43,18.933972]
[1748655592213,60.28,154.49,154.43,18.933972]
[1748655592511,60.28,154.49,154.44,18.64964886]
[1748655592512,66.75299807,154.49,154.44,18.64964886]
[1748655592821,102.90304463,154.49,154.43,61.27269349]
[1748655593020,60.28,154.49,154.45,18.64964886]
[1748655593225,60.1,154.49,154.47,0.28432314]
[1748655593429,42.62304463,154.51,154.47,0.28432314]
[1748655593735,42.62304463,154.56,154.51,18.79181043]
[1748655593939,102.64304463,154.55,154.51,18.79181043]
[1748655594143,42.62304463,154.52,154.48,18.79181043]
[1748655594313,42.62304463,154.52,154.49,0.14216157]
[1748655594314,102.60304463,154.52,154.49,0.14216157]
[1748655594518,42.62304463,154.51,154.48,0.14216157]
[1748655594738,102.60304463,154.52,154.48,0.28432314]
[1748655595036,59.98,154.52,154.48,61.55701663]
[1748655595238,109.07473777,154.52,154.48,18.933972]
[1748655595440,42.62304463,154.51,154.48,18.79181043]
[1748655595666,42.62304463,154.49,154.45,18.64964886]
[1748655595956,42.62304463,154.46,154.42,18.64964886]
[1748655596315,42.62304463,154.45,154.39,42.62304463]
[1748655596525,42.62304463,154.45,154.38,6.2007]
[1748655596526,59.8,154.44,154.41,18.933972]
[1748655596945,59.8,154.44,154.41,18.64964886]
[1748655597146,59.74,154.47,154.45,0.28432314]
[1748655597451,59.76,154.47,154.45,0.28432314]
[1748655597747,59.72,154.48,154.45,18.933972]
[1748655597921,102.34304463,154.48,154.45,18.79181043]
[1748655598125,42.62304463,154.48,154.45,0.14216157]
[1748655598354,6.47291086,154.49,154.45,0.28432314]
[1748655598355,59.64,154.47,154.45,0.28432314]
[1748655598647,108.73679406,154.47,154.38,6.2007]
[1748655598835,108.73679406,154.47,154.41,18.64964886]
[1748655598836,42.62304463,154.46,154.41,18.64964886]
[1748655599035,66.11374943,154.47,154.42,0.14216157]
[1748655599242,108.73679406,154.47,154.42,18.79181043]
[1748655599455,59.64,154.47,154.44,0.14216157]
[1748655599625,66.11391575,154.47,154.44,0.14216157]
[1748655600347,66.11391575,154.47,154.43,0.14216157]
[1748655600348,42.62304463,154.46,154.43,0.14216157]
[1748655600546,6.47458724,154.45,154.43,0.14216157]
[1748655600856,6.47165415,154.52,154.46,0.28432314]
[1748655601161,42.62304463,154.5,154.45,18.933972]
[1748655601338,101.88304463,154.51,154.45,61.55701663]
[1748655601656,42.62304463,154.51,154.45,61.55701663]
[1748655601836,42.62304463,154.46,154.43,0.28432314]
[1748655602041,42.62304463,154.44,154.39,18.64964886]
[1748655602240,42.62304463,154.44,154.34,42.62304463]
[1748655602241,42.62304463,154.4,154.34,42.62304463]
[1748655602439,42.62304463,154.39,154.33,42.62304463]
[1748655602772,42.62304463,154.39,154.31,6.2007]
[1748655602773,49.10036886,154.39,154.34,18.64964886]
[1748655602934,49.10036886,154.39,154.33,42.62304463]
[1748655603136,49.10036886,154.39,154.34,42.62304463]
[1748655603345,26.0,154.44,154.38,42.62304463]
[1748655603542,26.0,154.44,154.39,0.14216157]
[1748655603543,134.11844824,154.44,154.39,0.14216157]
[1748655603747,42.62304463,154.4,154.32,42.62304463]
[1748655603960,59.08,154.39,154.34,42.62304463]
[1748655604131,59.08,154.39,154.36,18.933972]
[1748655604334,42.62304463,154.42,154.36,61.41485506]
[1748655604547,6.47752299,154.38,154.32,18.79181043]
[1748655604747,42.62304463,154.38,154.35,0.14216157]
[1748655604950,101.66304463,154.37,154.31,6.2007]
[1748655605149,101.66304463,154.37,154.32,0.14216157]
[1748655605636,42.62304463,154.35,154.32,18.64964886]
[1748655606034,59.04,154.37,154.24,13.05610248]
[1748655606035,42.62304463,154.33,154.24,13.05610248]
[1748655606336,26.0,154.34,154.24,49.19574463]
[1748655606337,42.62304463,154.3,154.24,49.19574463]
[1748655606571,42.62304463,154.3,154.25,61.27269349]
[1748655606863,42.62304463,154.31,154.25,67.75560316]
[1748655607052,59.38,154.32,154.28,18.64964886]
[1748655607251,16.19605324,154.36,154.28,18.64964886]
[1748655607252,42.62304463,154.35,154.3,18.64964886]
[1748655607563,59.32,154.33,154.31,0.28432314]
[1748655607742,59.32,154.33,154.31,61.55701663]
[1748655608062,59.32,154.33,154.31,18.933972]
[1748655608447,68.62304463,154.32,154.24,6.5727]
[1748655608757,42.62304463,154.27,154.22,42.62304463]
[1748655609073,102.06304463,154.26,154.19,6.5727]
[1748655609289,42.62304463,154.25,154.19,6.5727]
[1748655609789,42.62304463,154.25,154.2,18.64964886]
[1748655610080,42.62304463,154.25,154.21,0.28432314]
[1748655610242,102.06304463,154.26,154.2,61.27269349]
[1748655610437,42.62304463,154.25,154.2,18.64964886]
[1748655610786,42.62304463,154.23,154.2,18.64964886]
[1748655610945,59.22,154.22,154.2,0.28432314]
[1748655611457,59.22,154.22,154.19,0.28432314]
[1748655611662,59.22,154.22,154.19,42.90736777]
[1748655611962,59.22,154.22,154.21,0.28432314]
[1748655613266,6.48297877,154.26,154.23,0.28432314]
[1748655613267,59.12,154.26,154.23,0.28432314]
[1748655613466,23.56,154.37,154.25,0.28432314]
[1748655613671,42.62304463,154.3,154.25,0.28432314]
[1748655613888,42.62304463,154.28,154.25,0.28432314]
[1748655614188,59.06,154.31,154.25,0.28432314]
[1748655614390,42.62304463,154.27,154.25,0.14216157]
[1748655614692,68.62304463,154.26,154.17,18.64964886]
[1748655614993,42.62304463,154.22,154.17,18.64964886]
[1748655615186,6.48298217,154.25,154.19,42.62304463]
[1748655615187,59.06,154.23,154.19,42.62304463]
[1748655615487,59.06,154.23,154.2,61.41485506]
[1748655615690,49.1060268,154.25,154.2,61.41485506]
[1748655615891,6.48298217,154.25,154.21,0.14216157]
[1748655616099,49.1060268,154.25,154.21,0.14216157]
[1748655616670,6.48298217,154.25,154.21,0.14216157]
[1748655616895,49.1060268,154.25,154.21,0.14216157]
[1748655617096,42.62304463,154.22,154.18,18.64964886]
[1748655617266,42.62304463,154.23,154.18,61.27269349]
[1748655617471,42.62304463,154.24,154.19,0.28432314]
[1748655617688,42.62304463,154.24,154.18,42.62304463]
[1748655617893,42.62304463,154.24,154.19,18.64964886]
[1748655618099,6.48298217,154.25,154.21,42.90736777]
[1748655618481,49.1060268,154.25,154.21,18.933972]
[1748655618986,32.4038027,154.31,154.24,18.64964886]
[1748655618987,42.62304463,154.29,154.24,18.64964886]
[1748655619179,101.18304463,154.29,154.25,0.28432314]
[1748655619374,16.19825053,154.34,154.25,18.933972]
[1748655619568,42.62304463,154.27,154.25,0.14216157]
[1748655619788,101.10304463,154.28,154.25,0.14216157]
[1748655620119,42.62304463,154.26,154.23,0.14216157]
[1748655620405,42.62304463,154.24,154.17,18.64964886]
[1748655620612,42.62304463,154.23,154.18,42.62304463]
[1748655620768,58.4,154.24,154.19,61.27269349]
[1748655620974,58.4,154.24,154.23,18.933972]
[1748655621274,107.46540753,154.27,154.24,0.14216157]
[1748655621474,26.0,154.28,154.24,18.933972]
[1748655621475,58.3,154.28,154.24,18.933972]
[1748655621688,42.62304463,154.29,154.24,61.55701663]
[1748655621885,100.90304463,154.29,154.24,61.55701663]
[1748655622087,42.62304463,154.28,154.24,18.933972]
[1748655622578,146.9,154.3,154.26,18.64964886]
[1748655622796,153.3809846,154.3,154.27,0.28432314]
[1748655622999,58.18,154.32,154.27,0.28432314]
[1748655623182,42.62304463,154.33,154.29,18.933972]
[1748655623383,100.76304463,154.32,154.29,0.28432314]
[1748655624103,42.62304463,154.34,154.29,0.28432314]
[1748655624398,6.47838914,154.36,154.32,18.933972]
[1748655624599,64.49838914,154.36,154.32,0.28432314]
[1748655624787,64.49838914,154.36,154.32,18.933972]
[1748655624982,64.45838914,154.36,154.32,18.933972]
[1748655625193,42.62304463,154.37,154.32,18.933972]
[1748655625383,107.04100118,154.37,154.32,18.933972]
[1748655625702,42.62304463,154.36,154.32,0.28432314]
[1748655626004,42.62304463,154.35,154.32,0.28432314]
[1748655626685,49.10159379,154.36,154.32,0.28432314]
[1748655627074,49.10159379,154.36,154.28,6.48137995]
[1748655627075,42.62304463,154.33,154.25,6.4822]
[1748655627274,42.62304463,154.3,154.25,6.4822]
[1748655627480,42.62304463,154.3,154.24,42.62304463]
[1748655627698,42.62304463,154.3,154.25,18.64964886]
[1748655628385,42.62304463,154.3,154.23,6.48366612]
[1748655628386,100.32304463,154.32,154.28,18.64964886]
[1748655628591,49.10385073,154.31,154.28,18.64964886]
[1748655629395,49.10385073,154.31,154.27,0.14216157]
[1748655629396,42.62304463,154.3,154.27,0.14216157]
[1748655629596,57.4,154.29,154.27,0.14216157]
[1748655629780,146.9,154.34,154.28,18.79181043]
[1748655629981,146.9,154.42,154.33,18.79181043]
[1748655630205,146.9,154.42,154.34,0.14216157]